[Event "Denmark Team Championship 2022"]
[Site "Denmark"]
[Date "2022.02.26"]
[Round "4.3"]
[White "Olsen, Filip Boe"]
[Black "Schwarz, Frank"]
[Result "1-0"]
[ECO "D35"]
[WhiteElo "2419"]
[BlackElo "2205"]
[Annotator "TA"]
[PlyCount "73"]
[EventDate "2022.10.29"]
[EventType "team-tourn"]
[EventCountry "DEN"]
[SourceTitle "playchess.com"]
[Source "ChessBase"]
[SourceQuality "1"]
[TimeControl "40/5400+30:1800+30"]

{[%evp 22,73,7,0,25,34,11,7,14,9,6,0,0,12,31,7,0,0,6,-5,6,7,13,7,11,8,4,0,12,0,37,29,90,16,60,60,68,67,59,65,64,48,171,130,137,129,275,267,626,609,937,932,903,886]} 1. d4 {[%emt 0:00:05]} Nf6 {[%emt 0:00:12]} 2. c4 {[%emt 0:00:22]} e6 {[%emt 0:00:12]} 3. Nc3 {[%emt 0:00:10]} d5 {[%emt 0:00:40]} 4. cxd5 {[%emt 0:02:23]} exd5 {[%emt 0:00:06]} 5. Bg5 {[%emt 0:00:20]} Be7 {[%emt 0:00:38]} 6. e3 {[%emt 0:00:10]} c6 {[%emt 0:01:14]} 7. Qc2 {[%emt 0:00:17]} Nbd7 {[%emt 0:00:43]} 8. Bd3 {[%emt 0:00:13]} Nf8 {[%emt 0:02:56]} 9. Nge2 {[%emt 0:03:34]} Ne6 {[%emt 0:03:28]} 10. Bh4 {[%emt 0:00:41]} g6 {[%emt 0:00:46]} 11. O-O {[%emt 0:02:40]} O-O {[%emt 0:01:08]} 12. Rab1 {[%emt 0:06:25]} Ng7 {[%emt 0:05:52] D36: Queen's Gambit Declined: Exchange Variation: Main line (5 Bg5 c6 6 Qc2).} 13. b4 {[%emt 0:02:09]} a6 {[%emt 0:00:47]} 14. a4 {[%emt 0:09:55]} Bf5 {[%emt 0:05:05] The position is equal.} 15. b5 {[%emt 0:04:25]} axb5 {[%emt 0:00:33]} 16. axb5 {[%emt 0:00:03]} Bxd3 {[%emt 0:01:07]} 17. Qxd3 {[%emt 0:00:03]} Nf5 {[%emt 0:01:30]} 18. Bxf6 {[%emt 0:03:05]} Bxf6 {[%emt 0:00:13] [#]} 19. Rfc1 $146 {[%emt 0:04:38]} ({Predecessor:} 19. bxc6 bxc6 20. Ra1 Ra5 21. Qc2 Nd6 22. Rxa5 Qxa5 23. Qa2 Ra8 24. Ra1 Qxa2 25. Rxa2 Rxa2 {½-½ (25) Neuman,P (2428)-Leniart,A (2480) Slovakia 2016}) 19... Ra3 {[%emt 0:05:19]} 20. Qd1 {[%emt 0:06:29]} Qa5 {[%emt 0:06:08]} 21. Ra1 {[%emt 0:02:36]} Ra8 {[%emt 0:11:47][%cal Ra3a1]} 22. Rxa3 {[%emt 0:00:39]} Qxa3 {[%emt 0:00:08]} 23. Nb1 {[%emt 0:02:43]} Qd6 {[%emt 0:02:30]} (23... Qb2 {seems wilder.} 24. bxc6 bxc6 25. Rxc6 Ra1) 24. Qb3 {[%emt 0:05:07]} Rc8 {[%emt 0:04:55]} 25. Nbc3 {[%emt 0:02:08][%cal Oc3d5,Bb1c3,Bc3a4,Ba4c5,Bc5d3][%mdl 32]} Ne7 {[%emt 0:14:18]} 26. Na4 {[%emt 0:05:14]} Kg7 {[%emt 0:02:43] [#]} (26... Nf5 $11) 27. h3 {[%emt 0:01:36]} (27. Nc5 $1 $16) 27... Ra8 {[%emt 0:05:53]} 28. Nc5 {[%emt 0:06:00]} Qc7 {[%emt 0:05:40]} 29. Nf4 {[%emt 0:03:27][%cal Be2f4,Bf4d3,Bd3b4][%mdl 32] White is more active.} Kg8 {[%emt 0:03:19][%cal Of6d4]} 30. Nfd3 {[%emt 0:02:01] Strongly threatening b6.} Nf5 {[%emt 0:03:58]} 31. Nb4 {[%emt 0:04:59]} Ra5 {[%emt 0:04:51]} (31... Bg5 $14) 32. bxc6 {[%emt 0:02:56]} bxc6 {[%emt 0:00:12]} 33. Ncd3 {[%emt 0:01:17][%cal Ob4d5] aiming for Nxd5! Pair of Knights!} Bg5 {[%emt 0:05:59] This move loses the game for Black.} (33... Rb5 $16 {might work better.}) 34. Nxc6 $18 {[%emt 0:03:22]} Nxe3 $2 {[%emt 0:01:28] [#]} (34... Ra6) 35. Nxa5 {[%emt 0:01:07] White is clearly winning.} ({Weaker is} 35. fxe3 Bxe3+ 36. Kf1 Bxc1 37. Nxa5 Bd2 $18) 35... Qxa5 {[%emt 0:00:21]} 36. Qb8+ {[%emt 0:02:49]} Kg7 {[%emt 0:00:34]} 37. Qe5+ {[%emt 0:00:54] Weighted Error Value: White=0.11 (very precise) /Black=0.51} 1-0

[Event "Denmark Team Championship 2022"]
[Site "Denmark"]
[Date "2022.03.13"]
[Round "4.3"]
[White "Gourlay, Martin B"]
[Black "Bromann, Thorbjorn"]
[Result "1/2-1/2"]
[ECO "C10"]
[WhiteElo "1911"]
[BlackElo "2374"]
[Annotator "TA"]
[PlyCount "56"]
[EventDate "2022.10.29"]
[EventType "team-tourn"]
[EventCountry "DEN"]
[SourceTitle "playchess.com"]
[Source "ChessBase"]
[SourceQuality "1"]
[TimeControl "40/5400+30:1800+30"]

{[%evp 19,56,29,45,46,69,52,55,23,57,40,35,31,39,0,1,0,0,0,0,0,0,0,0,0,0,0,0,0,0,0,0,0,0,0,0,0,0,0,0]} 1. e4 {[%emt 0:00:05]} e6 {[%emt 0:00:12]} 2. d4 {[%emt 0:00:10]} d5 {[%emt 0:00:05]} 3. Nc3 {[%emt 0:00:28]} dxe4 {[%emt 0:00:20]} 4. Nxe4 {[%emt 0:00:06]} Nd7 {[%emt 0:00:05]} 5. Nf3 {[%emt 0:01:29]} Ngf6 {[%emt 0:00:06]} 6. Bg5 {[%emt 0:07:17]} Be7 {[%emt 0:06:56]} 7. Nxf6+ {[%emt 0:00:45]} Bxf6 {[%emt 0:00:15]} 8. h4 {[%emt 0:08:09]} h6 {[%emt 0:01:00]} 9. Bxf6 {[%emt 0:06:26]} Qxf6 {[%emt 0:02:54]} 10. Qd2 {[%emt 0:02:19]} c5 {[%emt 0:12:19]} 11. O-O-O {[%emt 0:02:42] C13: French: Classical System: 4 Bg5 Be7, Alekhine-Chatard Attack.} cxd4 {[%emt 0:04:34]} 12. Qxd4 {[%emt 0:03:05] Strongly threatening Qa4.} Qxd4 {[%emt 0:04:06]} 13. Nxd4 {[%emt 0:07:11] [#] White is slightly better.} Nc5 $146 {[%emt 0:07:04]} ({Predecessor:} 13... a6 14. Rh3 O-O 15. Rc3 Nf6 16. g3 Ne4 17. Rf3 b5 18. Bd3 Bb7 19. Bxe4 Bxe4 {1-0 (59) Hovhannisyan,R (2642)-Bromann,T (2392) Chess.com INT 2020}) 14. Bb5+ {[%emt 0:28:38]} Bd7 {[%emt 0:14:46]} 15. Bxd7+ {[%emt 0:00:28]} Nxd7 {[%emt 0:00:08]} 16. Nb5 {[%emt 0:06:19] [#] aiming for Nc7+.} Ke7 {[%emt 0:07:55] The position is equal.} 17. Rhe1 {[%emt 0:00:44]} Rhd8 {[%emt 0:05:33]} 18. Re3 {[%emt 0:03:37]} a6 {[%emt 0:04:00]} 19. Nd6 {[%emt 0:03:23]} Nc5 {[%emt 0:04:58]} 20. Rc3 {[%emt 0:04:02]} Rxd6 {[%emt 0:13:17]} 21. Rxc5 {[%emt 0:00:05] [#] Threatens to win with Rc7+.} Rxd1+ {[%emt 0:00:09]} 22. Kxd1 $11 {[%emt 0:00:05][%mdl 4096] Endgame KR-KR} Kd6 {[%emt 0:00:06] Against Rc7} 23. Rc3 {[%emt 0:00:16]} g5 {[%emt 0:00:23]} 24. hxg5 {[%emt 0:01:47]} hxg5 {[%emt 0:00:03]} 25. Rd3+ {[%emt 0:01:44]} Kc6 {[%emt 0:00:11]} 26. Rc3+ {[%emt 0:00:08]} Kd6 {[%emt 0:00:05]} 27. Rd3+ {[%emt 0:00:04]} Kc6 {[%emt 0:06:14]} 28. Rc3+ {[%emt 0:00:05]} Kd6 {[%emt 0:00:04] Weighted Error Value: White=0.06 (flawless) /Black=0.05 (flawless)} 1/2-1/2

[Event "Denmark Team Championship 2022"]
[Site "Denmark"]
[Date "2022.03.13"]
[Round "4.4"]
[White "Hoi, Carsten"]
[Black "Jensen, Bjarke"]
[Result "1-0"]
[ECO "D20"]
[WhiteElo "2344"]
[BlackElo "2333"]
[Annotator "TA"]
[PlyCount "23"]
[EventDate "2022.10.29"]
[EventType "team-tourn"]
[EventCountry "DEN"]
[SourceTitle "playchess.com"]
[Source "ChessBase"]
[SourceQuality "1"]
[TimeControl "40/5400+30:1800+30"]

{[%evp 9,23,89,128,124,123,51,205,212,221,208,256,254,237,247,273,274]} 1. d4 {[%emt 0:00:17]} d5 {[%emt 0:00:06]} 2. c4 {[%emt 0:00:22]} dxc4 {[%emt 0:00:34]} 3. e3 {[%emt 0:01:20]} e5 {[%emt 0:00:48]} 4. Bxc4 {[%emt 0:00:48]} Nf6 {[%emt 0:00:36]} 5. Qb3 {[%emt 0:04:27]} Qd7 {[%emt 0:08:16]} 6. Nf3 {[%emt 0:09:05][%cal Bg1f3,Bf3e5,Be5c6][%mdl 32] D20: Queen's Gambit Accepted: 3 e3 and 3 e4.} Nc6 {[%emt 0:01:15] [#]} 7. Bb5 $146 {[%emt 0:11:21] White is more active.} (7. Nxe5 $16 Nxe5 8. dxe5) ({Predecessor:} 7. Nxe5 Nxe5 8. dxe5 Be7 9. Bxf7+ Kd8 10. exf6 Bxf6 11. O-O Rf8 12. Rd1 Rxf7 13. Rxd7+ Rxd7 14. Bd2 Rd6 15. Bc3 Bd7 16. Bxf6+ Rxf6 17. Qg8+ Ke7 18. Qxa8 {1-0 (18) Tobin,R-Dufour,R (1640) IECG email 1996}) 7... Bb4+ $2 {[%emt 0:12:21] Loses the game.} (7... exd4 $14 8. Ne5 Qd6 9. exd4 (9. Qxf7+ Kd8 $11) (9. Bxc6+ bxc6 10. exd4 Be6 $11) 9... Be6) 8. Bd2 $18 {[%emt 0:09:31] White is clearly better.} Bxd2+ {[%emt 0:00:21]} 9. Nbxd2 {[%emt 0:00:09]} exd4 {[%emt 0:03:44] [#]} 10. Ne5 $1 {[%emt 0:03:17]} ({Weaker is} 10. Nxd4 O-O $16) 10... Qe6 {[%emt 0:02:42]} 11. Nxc6 {[%emt 0:02:05]} ({Not} 11. exd4 O-O $14) 11... Qxb3 {[%emt 0:00:11]} 12. axb3 {[%emt 0:01:43] Weighted Error Value: White=0.20 (precise) /Black=0.48} 1-0

[Event "Denmark Team Championship 2022"]
[Site "Denmark"]
[Date "2022.02.26"]
[Round "4.4"]
[White "Bank Friis, Carsten"]
[Black "Andersen, Jackie"]
[Result "0-1"]
[ECO "A06"]
[WhiteElo "2178"]
[BlackElo "2390"]
[Annotator "TA"]
[PlyCount "78"]
[EventDate "2022.10.29"]
[EventType "team-tourn"]
[EventCountry "DEN"]
[SourceTitle "playchess.com"]
[Source "ChessBase"]
[SourceQuality "1"]
[TimeControl "40/5400+30:1800+30"]

{[%evp 9,78,13,19,19,19,17,17,16,16,18,38,28,29,30,56,30,43,0,18,18,21,0,17,-12,-17,-10,-20,-34,-25,-16,0,0,16,28,41,41,61,69,79,5,5,12,7,0,0,0,7,0,0,0,0,-385,5,6,14,-198,-198,-198,-198,-201,-198,-201,-197,-205,-195,-908,-796,-29985,-29986,-29997,-29998]} 1. Nf3 {[%emt 0:00:07]} d5 {[%emt 0:00:36]} 2. e3 {[%emt 0:00:12]} Nf6 {[%emt 0:00:25]} 3. c4 {[%emt 0:00:05]} e6 {[%emt 0:02:35]} 4. b3 {[%emt 0:00:34]} a6 {[%emt 0:04:24]} 5. Bb2 Be7 {[%emt 0:04:54]} 6. d4 {[%emt 0:11:36] A13: English Opening: 1...e6.} O-O {[%emt 0:00:37]} 7. Bd3 {[%emt 0:00:12]} dxc4 {[%emt 0:00:39]} 8. bxc4 {[%emt 0:03:29] The position is equal.} c5 {[%emt 0:00:30]} 9. O-O {[%emt 0:00:29]} Nc6 {[%emt 0:01:21]} 10. Nc3 {[%emt 0:05:09]} cxd4 {[%emt 0:03:56]} 11. exd4 {[%emt 0:00:17] [#]} Kh8 $146 {[%emt 0:00:31]} ({Predecessor:} 11... Re8 12. Rc1 Bd6 13. Ne4 Nxe4 14. Bxe4 Bd7 15. d5 exd5 16. Qxd5 Be6 17. Qh5 {½-½ (17) Khenkin,I (2592)-Antoniewski,R (2534) Czech Republic 2016}) 12. Qb3 {[%emt 0:12:47]} Bd7 {[%emt 0:07:33]} (12... Nxd4 13. Nxd4 Qxd4 14. Nd5 $1 $16 {[%mdl 512]}) 13. a4 {[%emt 0:17:04]} (13. Qxb7 $2 Na5 $19) 13... Rc8 {[%emt 0:11:02]} (13... Na5 $5 {[%cal Ra5b3]} 14. Qc2 Rc8 $11) 14. Rfd1 {[%emt 0:13:36]} (14. Qxb7 $2 Rb8 $19) 14... Qc7 {[%emt 0:10:10]} 15. c5 {[%emt 0:07:19]} Rb8 {[%emt 0:07:22]} 16. Be2 {[%emt 0:10:47]} b6 {[%emt 0:05:34]} 17. Bxa6 {[%emt 0:02:18]} bxc5 {[%emt 0:00:29]} 18. Bb5 {[%emt 0:00:01]} cxd4 {[%emt 0:06:46]} (18... Nxd4 {with more complications.} 19. Nxd4 cxd4 20. Rxd4 Bc5) 19. Nxd4 {[%emt 0:00:14]} Bc5 {[%emt 0:08:35]} 20. Nf3 {[%emt 0:02:24]} Qa7 {[%emt 0:10:49]} 21. Qc2 {[%emt 0:01:04]} Nb4 {[%emt 0:03:36]} 22. Qe2 {[%emt 0:00:32] aiming for Bxd7.} Nbd5 {[%emt 0:02:28]} 23. Nxd5 {[%emt 0:02:07]} (23. Ng5 {seems wilder.} Bxb5 24. axb5 Nf4 25. Qf3) 23... Nxd5 {[%emt 0:00:17]} 24. Ne5 {[%emt 0:01:38] Prevents f6.} ({White should play} 24. Qc2 $16 {Strongly threatening Ng5.} Be7 25. Bd4) 24... Bxb5 $11 {[%emt 0:00:49]} 25. axb5 {[%emt 0:00:02]} Qb7 {[%emt 0:00:24]} 26. Rab1 {[%emt 0:03:15]} f6 {[%emt 0:03:13]} (26... Qxb5 $2 {[#]} 27. Nxf7+ $1 {[%mdl 512]} Kg8 28. Nh6+ $1 {[%mdl 512]} (28. Qxe6 Rxf7 29. Rxd5 Bxf2+ 30. Kh1 Qe8 $11) 28... gxh6 29. Qxe6+ Rf7 30. Qg4+ (30. Qxd5 $2 Bxf2+ 31. Kh1 Qxd5 $19) 30... Kf8 31. Rxd5 $18) (26... Nf4 27. Qg4 Qe4 28. Re1 Bxf2+ 29. Kxf2 $16) 27. Nd3 {[%emt 0:01:57][%csl LRc5,LRe6]} Qxb5 {[%emt 0:00:22]} 28. Qxe6 {[%emt 0:00:20]} Ba7 {[%emt 0:02:27]} 29. Qf5 {[%emt 0:01:25]} Qb3 {[%emt 0:00:49]} 30. Ne1 $2 {[%emt 0:01:09][%mdl 8192]} (30. g3 $11 {and White stays safe.}) 30... Ne7 $2 {[%emt 0:01:23]} (30... Ne3 $19 31. Bd4 Nxf5 32. Rxb3 Nxd4) 31. Qe4 {[%emt 0:01:17]} Ng6 {[%emt 0:00:44]} (31... Qb7 {simplifies} 32. Qe2 Nd5 33. Bd4 Qd7) 32. Bxf6 $2 {[%emt 0:01:20] This move loses the game for White.} Qa2 $40 {[%emt 0:00:16][%mdl 128] Black is out for blood.} 33. Bxg7+ {[%emt 0:01:11]} Kxg7 {[%emt 0:00:01] The board is on fire.} 34. Nf3 {[%emt 0:00:27]} Qxf2+ {[%emt 0:00:19]} (34... Bxf2+ $2 {is the wrong capture.} 35. Kh1) 35. Kh1 {[%emt 0:00:01]} Rxb1 {[%emt 0:00:20]} 36. Rxb1 {[%emt 0:00:02]} Rf7 {[%emt 0:00:32]} 37. h4 $2 {[%emt 0:00:47]} (37. Ra1) 37... Rf4 {[%emt 0:01:05]} 38. Qe6 {[%emt 0:00:38]} Rxf3 {[%emt 0:01:03]} ({Resist} 38... Nxh4 39. Rb7+ Kh8 40. Qe8+) 39. gxf3 {[%emt 0:00:10]} Qxh4+ {[%emt 0:00:06] Weighted Error Value: White=0.70/Black=0.16 (very precise)} 0-1

[Event "Denmark Team Championship 2022"]
[Site "Denmark"]
[Date "2022.02.26"]
[Round "4.5"]
[White "Pedersen, Nicolai Vesterbaek"]
[Black "Pedersen, Daniel Vesterbaek"]
[Result "1/2-1/2"]
[ECO "A29"]
[WhiteElo "2362"]
[BlackElo "2223"]
[Annotator "TA"]
[PlyCount "63"]
[EventDate "2022.10.29"]
[EventType "team-tourn"]
[EventCountry "DEN"]
[SourceTitle "playchess.com"]
[Source "ChessBase"]
[SourceQuality "1"]
[TimeControl "40/5400+30:1800+30"]

{[%evp 23,63,2,19,11,21,16,19,20,20,20,20,20,20,20,20,20,20,20,20,20,20,12,13,12,11,13,13,10,11,6,42,47,45,41,81,9,9,0,0,0,0,0]} 1. c4 {[%emt 0:00:06]} e5 {[%emt 0:01:44]} 2. Nc3 {[%emt 0:00:18]} Nf6 {[%emt 0:01:11][%cal Bg8f6,Bf6d5,Bd5b6][%mdl 32]} 3. Nf3 {[%emt 0:00:20]} Nc6 {[%emt 0:00:17]} 4. g3 {[%emt 0:01:15]} d5 {[%emt 0:02:47]} 5. cxd5 {[%emt 0:00:15]} Nxd5 {[%emt 0:00:05]} 6. Bg2 {[%emt 0:11:59]} Nb6 {[%emt 0:00:25]} 7. O-O {[%emt 0:00:39]} Be7 {[%emt 0:00:15]} 8. d3 {[%emt 0:07:23]} O-O {[%emt 0:00:16]} 9. a3 {[%emt 0:04:39]} Be6 {[%emt 0:00:23]} 10. Be3 {[%emt 0:03:55]} Nd5 {[%emt 0:02:04]} 11. Nxd5 {[%emt 0:15:30]} Bxd5 {[%emt 0:00:23]} 12. Rc1 $1 {[%emt 0:00:15] 12.Rc1 is better than 12.Qa4.} f6 {[%emt 0:14:33]} 13. Bc5 {[%emt 0:14:25] A29: English Opening: Four Knights Variation with 4 g3.} Kh8 {[%emt 0:12:26]} 14. b4 {[%emt 0:02:15]} a6 {[%emt 0:06:48]} 15. Qc2 {[%emt 0:08:12] [#]} Bxc5 $146 {[%emt 0:13:37]} ({Predecessor:} 15... Rf7 16. e3 Qd7 17. d4 exd4 18. Bxd4 Nxd4 19. Nxd4 Bxg2 20. Kxg2 Bf8 21. Rfd1 Re8 {½-½ (40) Hundack,R (2209)-Salov,S (2302) Germany 2002}) 16. Qxc5 {[%emt 0:00:27]} Bxf3 {[%emt 0:00:12]} 17. Bxf3 {[%emt 0:00:26]} Nd4 {[%emt 0:00:14]} 18. Qxc7 {[%emt 0:04:33]} Nxf3+ {[%emt 0:00:14]} 19. exf3 {[%emt 0:00:13]} Qxd3 {[%emt 0:00:16]} 20. Rc3 {[%emt 0:02:51]} Qd5 {[%emt 0:06:17]} 21. Rfc1 {[%emt 0:01:51]} h6 {[%emt 0:00:47]} 22. Kg2 {[%emt 0:03:44]} Rf7 {[%emt 0:11:23]} 23. Qb6 {[%emt 0:02:37]} e4 {[%emt 0:02:58]} 24. Qe3 {[%emt 0:01:20]} exf3+ {[%emt 0:05:46]} 25. Qxf3 {[%emt 0:00:16]} Qxf3+ {[%emt 0:00:05]} 26. Kxf3 $11 {[%emt 0:00:15][%mdl 4096] Endgame KRR-KRR} Re7 {[%emt 0:00:24]} 27. Rc7 {[%emt 0:04:52]} Rae8 {[%emt 0:00:26]} 28. h4 {[%emt 0:00:34]} h5 {[%emt 0:05:07]} 29. a4 {[%emt 0:02:46]} (29. R1c5 $16) 29... Kh7 $1 {[%emt 0:02:32] The position is equal.} 30. b5 {[%emt 0:00:57]} axb5 {[%emt 0:05:01]} 31. axb5 {[%emt 0:00:06]} Re5 {[%emt 0:00:21]} 32. Rxb7 {[%emt 0:03:31] Weighted Error Value: White=0.10 (very precise) /Black=0.05 (flawless)} 1/2-1/2

[Event "Denmark Team Championship 2022"]
[Site "Denmark"]
[Date "2022.03.13"]
[Round "4.5"]
[White "Christensen, Stefan"]
[Black "Carstensen, Jacob"]
[Result "1-0"]
[ECO "D05"]
[WhiteElo "2293"]
[BlackElo "2343"]
[Annotator "TA"]
[PlyCount "87"]
[EventDate "2022.10.29"]
[EventType "team-tourn"]
[EventCountry "DEN"]
[SourceTitle "playchess.com"]
[Source "ChessBase"]
[SourceQuality "1"]
[TimeControl "40/5400+30:1800+30"]

{[%evp 12,87,20,12,50,51,68,23,30,18,36,24,37,0,0,0,0,0,7,0,-11,-7,0,-7,0,-16,-15,-16,-11,-16,-14,-13,-11,-26,-9,-34,-17,-72,-51,-50,-41,-81,-78,-131,-129,-133,-140,-127,-51,-55,-61,-61,-56,-44,-52,-55,-35,-62,-39,-64,-51,-68,-73,-90,-68,-127,-113,-98,-28,-27,-17,-27,-6,-4,8743,8743,10378,641]} 1. d4 {[%emt 0:00:09]} Nf6 {[%emt 0:00:06]} 2. Nf3 {[%emt 0:00:16]} e6 {[%emt 0:00:28]} 3. e3 {[%emt 0:00:26]} d5 {[%emt 0:00:28]} 4. Bd3 {[%emt 0:00:28]} c5 {[%emt 0:00:23]} 5. b3 {[%emt 0:00:30]} cxd4 {[%emt 0:00:32]} 6. exd4 {[%emt 0:00:30]} Nc6 {[%emt 0:00:13]} 7. O-O {[%emt 0:02:12]} Ne4 {[%emt 0:06:01] D05: Colle System with ...e6.} 8. Bb2 {[%emt 0:01:52]} f5 {[%emt 0:00:26]} 9. a3 {[%emt 0:08:46]} Be7 {[%emt 0:01:27] White has an edge.} 10. Nbd2 {[%emt 0:03:45]} O-O {[%emt 0:04:22]} 11. c4 {[%emt 0:04:29]} Bd7 {[%emt 0:01:42]} 12. Ne5 {[%emt 0:02:43]} Nxe5 {[%emt 0:08:58]} 13. dxe5 {[%emt 0:00:10]} Nxd2 {[%emt 0:00:27]} 14. Qxd2 {[%emt 0:00:12]} Bc6 {[%emt 0:00:05] [#]} 15. Rfd1 $146 {[%emt 0:07:07]} ({Predecessor:} 15. Qe3 b6 16. f4 dxc4 17. b4 Qxd3 18. Qc1 Rfd8 19. Bc3 a5 20. bxa5 Bc5+ 21. Kh1 Bxg2+ 22. Kxg2 Qe2+ {0-1 (22) Powe,M-Thys,H (1720) ICCF email 2019}) 15... Qe8 {[%emt 0:02:21]} 16. Qe2 {[%emt 0:03:54]} Qg6 {[%emt 0:08:45] [#] Threatens to win with ...dxc4.} 17. f3 {[%emt 0:01:17]} Rfd8 {[%emt 0:00:56]} 18. b4 {[%emt 0:09:29]} Ba4 {[%emt 0:07:51] Inhibits b5.} 19. Rf1 {[%emt 0:02:07]} dxc4 {[%emt 0:09:45]} 20. Bxc4 {[%emt 0:00:11]} a6 {[%emt 0:00:22]} 21. Rac1 {[%emt 0:09:48]} Rac8 {[%emt 0:11:35]} 22. Bd3 {[%emt 0:05:47]} Bc6 {[%emt 0:01:15]} 23. Rc2 {[%emt 0:05:13]} Qe8 {[%emt 0:03:11]} 24. Bc4 {[%emt 0:05:52]} (24. Qe3 $11) 24... Bd5 {[%emt 0:02:39]} (24... Bb5 $5 {[%cal Re8c6]} 25. g3 (25. Bxe6+ Kh8 $17) 25... Bxc4 26. Rxc4 Qb5 $15) 25. Bxd5 {[%emt 0:03:17]} Rxd5 {[%emt 0:00:08]} 26. Rfc1 {[%emt 0:01:41]} Rxc2 {[%emt 0:02:14]} 27. Qxc2 {[%emt 0:02:48]} (27. Rxc2 $142 Qd7 28. g3) 27... Bg5 $17 {[%emt 0:00:27] aiming for ...Be3+.} 28. Rd1 {[%emt 0:01:03] And now Rxd5 would win.} Qc6 {[%emt 0:00:41]} 29. Qe2 {[%emt 0:03:54] [#]} Qb5 {[%emt 0:03:19]} (29... Be3+ $1 $17 {[%mdl 512]} 30. Kf1 Rxd1+ 31. Qxd1 Qc4+ 32. Ke1 (32. Qe2 Qb3 $17) 32... h5) 30. Kf2 $1 $15 {[%emt 0:03:05]} Qb6+ {[%emt 0:01:49]} 31. Kf1 {[%emt 0:01:10]} Qd8 {[%emt 0:00:57]} 32. Rxd5 {[%emt 0:01:18]} Qxd5 {[%emt 0:00:02][%mdl 4096] Endgame KQB-KQB} 33. g3 {[%emt 0:03:19]} Kf7 {[%emt 0:04:18]} 34. Kg2 {[%emt 0:00:33]} Ke8 {[%emt 0:00:24]} 35. Kf2 {[%emt 0:01:39]} Kd7 {[%emt 0:01:00]} (35... Bd8 $5 {[%cal Rg7g5]}) 36. Qc2 {[%emt 0:01:31]} Bd8 {[%emt 0:05:17]} 37. Ke2 {[%emt 0:01:06]} b5 {[%emt 0:05:59]} 38. Qc3 {[%emt 0:03:39]} (38. Qd3 $15) 38... Bb6 {[%emt 0:02:49]} 39. Qc2 {[%emt 0:01:16]} a5 {[%emt 0:02:03]} ({Better is} 39... g5 $17 {...g4 is the strong threat.} 40. Qd3 Kc6 41. Qc3+ Qc4+ 42. Qxc4+ bxc4) 40. bxa5 $11 {[%emt 0:00:43]} Bxa5 {[%emt 0:00:08]} 41. a4 $1 {[%emt 0:05:09][%cal Ba3a4,Ba4b5,Bb5c6][%mdl 32]} Bc7 42. axb5 {[%emt 0:05:18]} Bxe5 $2 {[%emt 0:04:38][%mdl 8192]} (42... Qxb5+ $11 43. Qd3+ Kc6 44. Qxb5+ Kxb5) 43. Qc6+ $1 $18 {[%emt 0:01:43]} Qxc6 {[%emt 0:00:21]} 44. bxc6+ {[%emt 0:00:08] Weighted Error Value: White=0.14 (very precise) /Black=0.12 (very precise)} 1-0